bitfinex/quotes_ETHUSD_20250703
["timestamp","ask_amount","ask_price","bid_price","bid_amount"]
[1751502114579,8.241,2570.5,2570.1,0.8022]
[1751502114782,0.1944,2570.4,2570.0,2.2244]
[1751502115183,5.02432993,2570.4,2570.0,2.03]
[1751502115482,0.1944,2570.1,2570.0,2.03]
[1751502117458,8.4394,2570.1,2570.0,2.03]
[1751502117958,0.1944,2570.1,2570.0,2.03]
[1751502118155,2.2764,2570.1,2570.0,2.03]
[1751502118665,3.32834,2570.1,2570.0,2.03]
[1751502119296,8.04713918,2570.1,2570.0,2.03]
[1751502119470,26.28413918,2570.1,2570.0,2.03]
[1751502120302,0.8324,2569.5,2569.1,0.01]
[1751502120493,0.8324,2569.9,2569.1,0.8342]
[1751502120805,3.89168939,2569.6,2569.1,0.8342]
[1751502121003,0.8324,2569.9,2569.1,0.8342]
[1751502121161,2.082,2569.5,2569.1,0.8342]
[1751502121361,10.328,2569.5,2569.1,0.01]
[1751502122293,10.8085,2569.4,2569.1,0.01]
[1751502122470,3.89226218,2569.2,2569.1,0.01]
[1751502122671,18.247,2569.2,2569.1,0.01]
[1751502122987,2.11365,2569.3,2569.1,0.01]
[1751502123190,10.329,2569.2,2568.4,3.89337851]
[1751502123393,10.329,2569.2,2568.5,0.38933785]
[1751502123561,10.329,2569.2,2568.2,3.89369826]
[1751502123765,10.329,2569.2,2568.3,3.89361624]
[1751502123965,10.329,2569.2,2568.2,3.89374422]
[1751502124183,2.63347799,2569.1,2568.3,3.89362211]
[1751502124417,2.63347799,2569.1,2568.1,3.89391255]
[1751502124620,2.63347799,2569.1,2568.2,3.89367619]
[1751502124784,2.63347799,2569.1,2568.3,3.893624]
[1751502125110,2.63347799,2569.1,2568.2,3.89372333]
[1751502125298,1.2962478,2569.0,2568.1,3.89391732]
[1751502125495,1.2962478,2569.0,2568.3,3.89354449]
[1751502125810,2.083,2568.9,2568.6,3.89317137]
[1751502126024,2.083,2568.9,2568.4,3.89340109]
[1751502126224,2.083,2568.9,2568.5,0.8209]
[1751502127288,2.2913,2568.9,2568.5,0.8209]
[1751502128183,2.2913,2568.9,2568.1,3.89386272]
[1751502128420,2.2913,2568.9,2568.2,0.7561]
[1751502129128,0.2083,2568.9,2568.2,0.7561]
[1751502129334,2.083,2568.8,2568.5,3.89323889]
[1751502129490,8.238,2569.1,2568.5,3.89323889]
[1751502129491,2.083,2568.7,2568.6,0.7773]
[1751502129689,10.0,2569.3,2568.6,0.7773]
[1751502129890,10.319,2569.2,2568.6,4.6704584]
[1751502130124,0.8085,2569.4,2568.6,4.6704584]
[1751502130332,3.16385,2569.3,2568.7,3.89292976]
[1751502130529,0.1944,2569.2,2568.8,0.1944]
[1751502130722,2.083,2569.2,2569.1,3.89241368]
[1751502130926,0.1944,2569.5,2569.0,0.1944]
[1751502131232,2.083,2569.4,2569.0,0.1944]
[1751502131592,0.1944,2569.2,2568.9,0.8175]
[1751502131793,0.1944,2569.2,2568.8,0.1944]
[1751502132006,8.55844,2569.3,2568.6,0.7991]
[1751502132205,4.95652117,2569.2,2568.4,4.72]
[1751502132503,0.1944,2568.8,2568.4,0.1944]
[1751502133414,2.083,2568.8,2568.3,4.69270879]
[1751502133614,2.083,2568.8,2568.5,4.08763736]
[1751502134001,2.083,2568.9,2568.5,0.1944]
[1751502137010,2.083,2568.9,2568.5,4.9144]
[1751502138343,0.1944,2568.8,2568.5,4.72]
[1751502139244,0.1944,2568.8,2567.9,3.89420092]
[1751502139245,0.8097,2568.7,2567.9,0.29763713]
[1751502139533,0.1944,2568.5,2567.9,0.1944]
[1751502139733,0.1944,2569.0,2568.7,3.89293728]
[1751502139901,0.1944,2569.0,2568.8,3.89278322]
[1751502140107,2.083,2569.1,2569.0,0.7889]
[1751502140735,2.083,2569.1,2568.6,0.7889]
[1751502140943,2.2774,2569.1,2568.6,0.9833]
[1751502141235,2.083,2569.0,2568.6,0.9833]
[1751502141643,0.8279,2568.9,2568.3,0.7648]
[1751502141825,0.1944,2568.8,2568.4,0.1944]
[1751502143221,0.1944,2568.8,2568.4,4.08782557]
[1751502143631,2.083,2569.1,2568.8,0.8004]
[1751502143833,2.083,2569.1,2568.8,4.6931452]
[1751502144236,2.083,2569.1,2568.9,3.89259678]
[1751502144420,2.083,2569.1,2569.0,0.1944]
[1751502144740,0.1944,2569.5,2569.0,4.0869652]
[1751502144940,2.102,2569.4,2569.1,3.89235091]
[1751502145144,2.102,2569.4,2569.0,4.08689372]
[1751502145642,0.1944,2569.5,2569.0,4.08693339]
[1751502145842,2.2964,2569.5,2569.0,4.08693339]
[1751502146958,0.1944,2569.5,2569.0,4.08693339]
[1751502147120,2.102,2569.4,2569.1,3.89240782]
[1751502147446,0.1944,2569.5,2569.1,3.89240782]
[1751502147650,0.1944,2569.5,2569.2,3.89225705]
[1751502147851,0.1944,2569.5,2569.1,3.89235129]
[1751502148060,0.1944,2569.5,2569.1,3.89237228]
[1751502148351,9.353,2569.7,2569.3,4.86720383]
[1751502148352,2.102,2569.6,2569.3,4.86720383]
[1751502149135,2.102,2569.6,2569.3,0.9752]
[1751502150659,9.353,2569.7,2569.3,0.9752]
[1751502151049,11.455,2569.7,2569.4,3.89183982]
[1751502151259,11.455,2569.7,2569.3,4.86725325]
[1751502151767,2.102,2569.7,2569.3,0.9752]
[1751502152350,0.7717,2569.6,2569.3,0.1944]
[1751502152555,0.7717,2569.6,2568.8,3.89285758]
[1751502152869,0.7717,2569.6,2568.6,8.61311552]
[1751502153070,0.7717,2569.6,2568.5,0.7702]
[1751502153261,0.7717,2569.6,2568.3,3.08955361]
[1751502153262,0.7679,2569.4,2568.4,3.89344704]
[1751502153570,0.7679,2569.4,2568.6,3.89316274]
[1751502153772,2.102,2569.3,2568.5,3.89325749]
[1751502153972,1.11589,2569.2,2568.4,3.89339824]
[1751502154572,1.11589,2569.2,2568.3,0.817]
[1751502154764,1.11589,2569.2,2568.4,4.72]
[1751502154765,0.321789,2569.1,2568.4,4.72]
[1751502155981,0.7749,2569.0,2568.4,4.72]
[1751502157891,0.7749,2569.0,2568.0,5.5396]
[1751502158080,12.18580246,2568.9,2568.0,5.5396]
[1751502158288,1.6853294,2568.8,2568.0,5.5396]
[1751502158469,2.9079,2568.7,2568.0,5.5396]
[1751502158672,2.102,2568.6,2568.0,9.4336056]
[1751502159578,2.102,2568.6,2568.0,5.5396]
[1751502160086,2.102,2568.5,2568.1,3.89389917]
[1751502160260,2.102,2568.4,2568.0,0.8081]
[1751502160459,0.29079,2568.5,2568.0,0.8081]
[1751502160460,2.102,2568.3,2568.0,0.8081]
[1751502160755,2.102,2568.3,2567.7,4.70937378]
[1751502161186,2.102,2568.3,2567.7,0.8149]
[1751502161968,2.102,2568.3,2567.5,0.01]
[1751502161969,0.8242,2568.2,2567.5,0.01]
[1751502162171,0.68199032,2568.1,2567.5,0.01]
[1751502162366,2.102,2568.1,2567.5,0.01]
[1751502162571,0.8331,2569.1,2568.0,0.7588]
[1751502162872,0.8331,2569.1,2568.4,3.89340618]
[1751502163197,0.8331,2569.1,2568.3,3.89354876]
[1751502163412,0.8331,2569.1,2568.2,9.0738]
[1751502163594,2.102,2569.3,2568.3,0.46524653]
[1751502163900,2.102,2569.3,2568.8,3.89281124]
[1751502164099,9.352,2569.5,2569.0,0.8071]
[1751502164299,9.352,2569.5,2569.0,4.69958666]
[1751502164480,9.352,2569.5,2569.0,0.8071]
[1751502164871,9.352,2569.5,2569.1,3.89239405]
[1751502165066,9.352,2569.5,2569.1,3.89236259]
[1751502165311,9.352,2569.5,2569.0,4.69959061]
[1751502165517,11.454,2569.5,2569.3,3.89209775]
[1751502165674,2.102,2569.5,2569.3,3.89209775]
[1751502166070,2.102,2569.5,2569.2,3.89220919]
[1751502168218,2.102,2569.5,2569.1,3.89234857]
[1751502168517,2.102,2569.5,2569.2,3.89224558]
[1751502169444,0.7898,2569.9,2569.5,3.89169513]
[1751502169629,0.02,2569.6,2569.4,3.891818]
[1751502170133,0.02,2569.6,2569.5,4.71850774]
[1751502172537,0.02,2569.6,2569.5,4.91290774]
[1751502172940,0.02,2570.0,2569.5,4.91290774]
[1751502172941,0.02,2570.0,2569.9,4.69600199]
[1751502173125,0.02,2570.0,2569.9,5.74913558]
[1751502173660,1e-08,2570.0,2569.9,16.29913558]
[1751502174107,1e-08,2570.0,2569.9,24.59013558]
[1751502174302,1e-08,2570.0,2569.9,5.74913558]
[1751502176509,1e-08,2570.0,2569.9,1.05313359]
[1751502176841,1e-08,2570.0,2569.9,0.1944]
[1751502177046,1e-08,2570.0,2569.7,8.288]
[1751502177215,1e-08,2570.0,2569.7,8.4794]
[1751502179518,0.76340001,2570.0,2569.5,4.72]
[1751502179838,0.76340001,2570.0,2569.6,0.1944]
[1751502181405,0.76340001,2570.0,2569.7,3.89150484]
[1751502182158,0.76340001,2570.0,2569.6,4.08597698]
[1751502182353,0.76340001,2570.0,2569.6,0.1944]
[1751502182639,1.06968001,2570.0,2569.5,8.266]
[1751502182840,0.1944,2569.9,2569.4,4.0862959]
[1751502183045,0.1944,2569.9,2569.5,8.265]
[1751502183437,0.1944,2569.9,2569.4,4.0862959]
[1751502183639,0.531308,2569.9,2569.5,8.263]
[1751502183941,0.531308,2569.9,2569.4,4.08631479]
[1751502184141,0.531308,2569.9,2569.4,12.34831479]
[1751502184329,0.1944,2569.9,2569.4,12.34831479]
[1751502184749,0.1944,2569.9,2569.4,8.4564]
[1751502185942,0.1944,2569.9,2569.4,13.1764]
[1751502186314,0.1944,2569.9,2569.4,13.1704]
[1751502186520,0.1944,2569.9,2569.4,17.06234464]
[1751502187246,0.50068,2569.9,2569.4,13.1704]
[1751502187543,0.50068,2569.9,2569.4,4.9144]
[1751502187930,0.30628,2569.9,2569.4,4.72]
[1751502188232,0.1944,2569.7,2569.2,0.1944]
[1751502188434,3.89148549,2569.8,2569.1,4.72]
[1751502188635,0.1944,2569.3,2569.1,4.72]
[1751502188941,0.1944,2569.3,2569.0,0.01]
[1751502188942,0.1944,2569.3,2569.0,3.90246106]
[1751502189141,0.1944,2569.3,2569.0,0.01]
[1751502190052,0.41977655,2569.7,2569.2,3.89226218]
[1751502190053,0.8244,2569.7,2569.2,3.89226218]
[1751502190254,1.0188,2569.7,2569.2,4.08666218]
[1751502190455,1.361808,2569.7,2569.2,0.1944]
[1751502191251,1.167408,2569.7,2569.0,0.01]
[1751502191418,0.1944,2569.2,2569.0,0.01]
[1751502191614,0.7853,2569.1,2569.0,0.01]
[1751502191829,0.28903,2569.1,2569.0,0.01]
[1751502192032,2.105,2569.3,2569.0,0.01]
[1751502192229,2.8903,2569.4,2569.0,0.01]
[1751502194246,2.105,2569.4,2569.0,0.01]
[1751502194447,4.68481368,2569.1,2569.0,0.01]
[1751502194874,14.68481368,2569.1,2569.0,0.01]
[1751502195179,15.23481368,2569.1,2569.0,0.01]
[1751502195688,3.89293621,2568.8,2567.7,15.21821632]
[1751502195891,0.7907,2568.6,2567.7,17.14945484]
[1751502196188,0.7907,2568.6,2567.7,14.82424933]
[1751502196363,0.7907,2568.6,2567.8,3.89436169]
[1751502196545,0.7907,2568.6,2567.7,14.82422057]
[1751502196751,1.46956252,2568.6,2567.7,14.82422057]
[1751502197779,2.105,2568.7,2567.8,12.70233416]
[1751502197982,2.105,2568.7,2568.0,3.89397037]
[1751502198189,2.105,2568.7,2568.1,3.89392361]
[1751502198495,2.105,2568.7,2567.9,8.285]
[1751502198496,0.8211,2568.6,2567.9,8.285]
[1751502198652,1.11371,2568.6,2567.9,8.285]
[1751502198851,1.11371,2568.6,2567.7,0.7812]
[1751502199045,0.8211,2568.5,2567.5,0.7912]
[1751502199299,3.89357164,2568.4,2567.5,0.01]
[1751502199646,2.9271,2568.3,2567.8,3.89435622]
[1751502199803,2.106,2568.3,2567.6,3.89468764]
[1751502200006,2.106,2568.3,2567.7,0.39046876]
[1751502200426,2.106,2568.3,2567.6,3.89458028]
[1751502200733,2.106,2568.3,2567.7,3.89452779]
[1751502201607,2.8868,2568.5,2567.8,3.89435488]
[1751502201808,3.0812,2568.5,2568.0,4.0884596]
[1751502202725,2.106,2568.5,2568.2,3.89372575]
[1751502202925,2.106,2568.5,2568.3,0.1944]
[1751502204041,2.106,2568.5,2568.0,8.29]
[1751502204257,0.8198,2568.4,2568.1,0.1944]
[1751502204563,1.0304,2568.4,2567.6,0.01]
[1751502204857,0.1944,2568.0,2567.6,0.2044]
[1751502205056,0.8226,2567.9,2567.6,0.2044]
[1751502205358,2.9286,2567.9,2567.6,0.01]
[1751502205539,0.1944,2567.7,2567.6,0.01]
[1751502208616,1.0037,2567.7,2567.6,0.01]
[1751502209259,0.8093,2567.7,2567.6,0.01]
[1751502210046,4.70383596,2567.7,2567.6,0.01]
[1751502210229,14.70383596,2567.7,2567.6,0.01]
[1751502210425,16.77425892,2567.7,2567.6,0.01]
[1751502211219,12.87972296,2567.7,2567.6,0.01]
[1751502211848,0.8093,2567.7,2567.6,0.01]
[1751502213654,2.106,2567.9,2567.6,9.37861086]
[1751502213827,2.104,2568.5,2567.6,5.77147743]
[1751502214166,2.9227,2568.6,2567.8,3.89438423]
[1751502214319,2.9227,2568.6,2567.9,3.89421347]
[1751502214755,2.9227,2568.6,2567.9,3.89414646]
[1751502214960,2.9227,2568.6,2567.8,3.89433551]
[1751502215130,3.21497,2568.6,2567.8,3.89433551]
[1751502215328,3.21497,2568.6,2567.9,3.89421115]
[1751502215730,3.21497,2568.6,2568.0,3.89396974]
[1751502215944,2.9227,2568.6,2568.1,3.8939207]
[1751502216874,2.104,2568.6,2567.9,0.7865]
[1751502217026,2.104,2568.6,2568.5,3.89332295]
[1751502217532,2.104,2568.6,2568.3,3.89354916]
[1751502217925,2.104,2568.6,2568.4,3.89345278]
[1751502218851,2.104,2568.6,2568.3,3.8935494]
[1751502219269,2.104,2568.6,2568.4,0.1944]
[1751502219569,2.104,2568.6,2568.4,4.08787161]
[1751502220281,2.124,2569.1,2568.7,3.89291057]
[1751502220588,2.3184,2569.1,2568.6,3.89309888]
[1751502223272,2.3184,2569.1,2568.5,4.91846416]
[1751502223774,0.2144,2569.1,2568.7,3.89301981]
[1751502223936,0.2144,2569.1,2568.8,3.8928404]
[1751502224351,0.2144,2569.1,2568.7,3.89294808]
[1751502224756,0.2144,2569.1,2568.6,3.89309686]
[1751502225349,0.2144,2569.1,2568.6,12.16509686]
[1751502225677,0.02,2569.1,2569.0,4.6797652]
[1751502226371,0.02,2569.1,2568.7,0.8178]
[1751502226673,0.02,2569.1,2568.7,12.99574091]
[1751502226854,0.02,2569.1,2568.7,12.17794091]
[1751502227450,0.02,2569.1,2568.8,12.17778301]
[1751502227775,0.02,2569.1,2568.9,8.284]
[1751502228751,0.02,2569.1,2569.0,4.7094652]
[1751502228951,0.02,2569.1,2569.0,15.2594652]
[1751502230373,0.8217,2570.1,2569.2,5.23386218]
[1751502230541,0.02,2570.2,2569.9,3.89120199]
[1751502230747,0.02,2570.2,2569.9,13.55500199]
[1751502230973,0.02,2570.2,2569.9,15.29963617]
[1751502231176,0.02,2570.2,2569.9,30.01963617]
[1751502231349,0.02,2570.2,2570.1,14.71259918]
[1751502231544,0.02,2570.2,2570.1,15.00516977]
[1751502231846,0.02,2570.2,2570.1,25.71893697]
[1751502232475,0.02,2570.2,2570.1,25.72293697]
[1751502232979,0.02,2570.2,2570.1,17.43693697]
[1751502233169,0.02,2570.2,2570.1,20.9864672]
[1751502233473,0.02,2570.2,2570.1,2.7034672]
[1751502233673,0.02,2570.2,2570.1,1.8817672]
[1751502233873,0.02,2570.2,2570.1,8.278]
[1751502234073,0.02,2570.2,2569.8,4.68962562]
[1751502234262,0.02,2570.2,2570.1,8.279]
[1751502237858,0.02,2570.2,2570.1,12.16989918]
[1751502238051,0.02,2570.2,2570.1,13.79543101]
[1751502238378,0.02,2570.2,2570.1,14.34543101]
[1751502239178,0.02,2570.2,2570.1,13.79543101]
[1751502240702,0.02,2570.2,2570.1,1.62553183]
[1751502240868,0.02,2570.2,2570.1,8.257]
[1751502241873,0.02,2570.2,2570.0,0.1944]
[1751502242085,0.7506,2570.1,2569.7,0.1944]
[1751502242611,0.1944,2570.0,2569.8,8.257]
[1751502242907,0.7506,2570.1,2569.8,8.257]
[1751502244190,0.7506,2570.1,2569.8,8.256]
[1751502244369,0.1944,2569.9,2569.7,8.255]
[1751502244570,0.8013,2569.8,2569.2,0.1944]
[1751502244804,0.8013,2569.8,2568.8,4.7260542]
[1751502244805,0.1944,2569.5,2569.3,8.255]
[1751502245005,0.8013,2569.4,2569.1,0.1944]
[1751502245182,0.9957,2569.4,2569.2,8.255]
[1751502245378,0.9957,2569.4,2568.9,0.1944]
[1751502245704,0.9957,2569.4,2569.0,8.255]
[1751502245891,2.869,2569.7,2569.1,3.89231108]
[1751502246090,0.1944,2569.6,2569.2,0.1944]
[1751502246292,0.776,2569.7,2569.2,3.89224569]
[1751502246497,0.776,2569.7,2569.5,0.1944]
[1751502246894,0.1944,2569.5,2569.0,8.4484]
[1751502247605,0.1944,2569.5,2569.0,12.34096305]
[1751502247788,0.1944,2569.5,2569.0,8.4484]
[1751502248100,0.1944,2569.5,2569.1,8.254]
[1751502250417,2.093,2570.0,2569.2,5.4796]
[1751502250630,0.1944,2570.3,2570.1,3.89089918]
[1751502250809,0.1944,2570.6,2570.5,3.89029371]
[1751502250973,0.02,2570.7,2570.6,4.27917174]
[1751502251179,0.05560001,2570.9,2570.8,3.88983973]
[1751502251606,0.05560001,2570.9,2570.8,15.44683973]
[1751502252086,0.05560001,2570.9,2570.8,4.89683973]
[1751502252412,0.05560001,2570.9,2570.8,8.4564]
[1751502252987,0.05560001,2570.9,2570.8,8.4614]
[1751502253379,0.05560001,2570.9,2570.8,0.1944]
[1751502253576,0.05560001,2570.9,2570.8,8.264]
[1751502253775,0.05560001,2570.9,2570.4,3.89032709]
[1751502253776,0.05560001,2570.9,2570.2,3.8907233]
[1751502253996,0.1944,2570.8,2570.4,0.1944]
[1751502254916,0.1944,2570.8,2570.5,8.264]
[1751502255288,0.1944,2570.8,2570.6,8.262]
[1751502255995,0.831,2570.7,2570.4,0.1944]
[1751502256195,0.1944,2570.6,2570.2,0.1944]
[1751502256710,0.1944,2570.4,2570.2,8.264]
[1751502256907,0.1944,2570.2,2569.7,0.1944]
[1751502257122,0.1944,2570.2,2569.7,0.60300503]
[1751502257286,2.9039,2570.1,2569.6,2.31759522]
[1751502257487,0.8109,2570.1,2569.5,12.178709]
[1751502257992,0.8109,2570.1,2569.5,8.287]
[1751502258513,0.82,2570.6,2569.6,0.7639]
[1751502258705,0.82,2570.6,2569.7,0.90509]
[1751502258915,0.82,2570.6,2570.0,3.89092457]
[1751502259120,0.82,2570.6,2569.8,3.89129222]
[1751502259422,0.82,2570.6,2570.1,8.303]
[1751502259787,0.82,2570.6,2570.1,12.19382229]
[1751502259984,0.05560001,2570.9,2570.4,3.89032074]
[1751502260188,0.05560001,2570.9,2570.5,8.303]
[1751502260404,0.05560001,2570.9,2570.5,12.1932784]
[1751502260618,0.05560001,2570.9,2570.5,8.303]
[1751502260818,0.05560001,2570.9,2570.5,9.52234219]
[1751502261020,0.05560001,2570.9,2570.5,8.309]
[1751502261190,0.8215,2571.0,2570.5,8.309]
[1751502261516,0.8215,2571.0,2569.7,3.22268522]
[1751502261716,0.02,2571.1,2569.6,2.31759522]
[1751502261717,0.7812,2570.5,2569.6,2.31759522]
[1751502261888,6.76451637,2570.5,2569.6,2.31759522]
[1751502262089,6.76451637,2570.5,2569.4,12.20489512]
[1751502262287,0.67645164,2570.4,2569.5,1.45224903]
[1751502262519,0.8153,2570.3,2569.5,1.45224903]
[1751502262702,0.8153,2570.3,2569.6,8.312]
[1751502262888,0.8153,2570.3,2569.5,8.31]
[1751502263088,0.8129,2570.1,2569.3,4.72]
[1751502263324,0.8129,2570.1,2569.4,8.309]
[1751502263525,2.9059,2570.1,2570.0,0.01]
[1751502264220,0.8129,2570.1,2570.0,0.01]
[1751502267498,1.0073,2570.1,2570.0,0.01]
[1751502268434,5.38799612,2570.1,2570.0,0.01]
[1751502268633,15.38799612,2570.1,2570.0,0.01]
[1751502270134,11.49709694,2570.1,2570.0,0.01]
[1751502270441,1.0073,2570.1,2570.0,0.01]
[1751502271209,3.90976708,2570.9,2570.0,0.01]
[1751502271210,0.78,2570.5,2570.0,0.01]
[1751502271709,0.9744,2570.5,2570.0,0.2044]
[1751502273638,0.9744,2570.5,2570.0,4.09542674]
[1751502273939,0.9744,2570.5,2570.0,0.2044]
[1751502274943,0.1944,2570.5,2570.0,0.2044]
[1751502275143,0.1944,2570.5,2570.1,3.89082854]
[1751502275746,0.1944,2570.5,2570.0,4.58476044]
[1751502276341,0.1944,2570.5,2570.0,0.2044]
[1751502276523,6.77884424,2570.8,2570.0,0.01]
[1751502276723,0.1944,2570.3,2570.0,0.01]
[1751502276914,0.78,2570.3,2570.0,0.01]
[1751502277240,2.109,2570.2,2570.0,0.01]
[1751502277431,0.2889,2570.1,2570.0,0.01]
[1751502278926,4.95979918,2570.1,2570.0,0.01]
[1751502279452,7.06879918,2570.1,2570.0,0.01]
[1751502279823,17.06879918,2570.1,2570.0,0.01]
[1751502281941,13.1779,2570.1,2570.0,0.01]
[1751502283160,11.0689,2570.1,2570.0,0.01]
[1751502283378,13.1779,2570.1,2570.0,0.01]
[1751502284517,17.06879918,2570.1,2570.0,0.01]
[1751502287727,17.61879918,2570.1,2570.0,0.01]
[1751502287952,3.89195392,2569.5,2569.0,0.01]
[1751502288152,6.82069739,2569.4,2569.0,0.01]
[1751502288521,2.9287,2569.4,2569.0,0.01]
[1751502288721,0.1944,2569.3,2569.0,0.01]
[1751502289622,0.764,2569.7,2569.1,0.8137]
[1751502289945,0.1944,2569.6,2569.1,5.45580403]
[1751502293169,0.1944,2569.6,2569.1,1.56347]
[1751502293386,0.8094,2569.5,2569.0,0.01]
[1751502293686,0.1944,2569.3,2569.0,0.01]
[1751502294457,0.7539,2569.8,2569.0,3.90252477]
[1751502294652,0.1944,2569.5,2569.1,0.1944]
[1751502295185,0.1944,2569.5,2569.1,4.08678835]
[1751502295384,0.1944,2569.5,2569.1,0.1944]
[1751502295678,0.1944,2569.5,2569.2,3.8921887]
[1751502296184,0.1944,2569.5,2569.3,3.89198817]
[1751502296352,2.11,2569.8,2569.5,3.89180535]
[1751502296541,2.11,2569.8,2569.6,3.89157596]
[1751502296746,2.11,2569.8,2569.5,0.1944]
[1751502296945,2.11,2569.8,2569.5,1.15037936]
[1751502297247,2.11,2569.8,2569.5,0.1944]
[1751502299863,2.11,2569.8,2569.5,0.2044]
[1751502300264,2.11,2569.8,2569.5,4.09619853]
[1751502300781,2.11,2569.8,2569.5,0.2044]
[1751502301155,2.11,2569.8,2569.5,0.01]
[1751502301363,2.9264,2569.8,2569.5,0.01]
[1751502301549,3.1208,2569.8,2569.5,0.01]
[1751502302750,10.2018,2570.1,2569.5,0.57779]
[1751502302949,0.1944,2569.9,2569.5,3.90173832]
[1751502303181,0.1944,2569.9,2569.5,0.01]
[1751502303584,12.2918,2570.1,2569.5,0.01]
[1751502303791,3.89165628,2569.6,2569.5,0.01]
[1751502303955,0.47234563,2569.6,2569.5,0.01]
[1751502304258,0.8318,2569.7,2569.5,0.01]
[1751502304683,14.66505628,2569.6,2569.5,0.01]
[1751502305274,15.21505628,2569.6,2569.5,0.01]
[1751502308870,15.21505628,2569.6,2569.0,0.01]
[1751502309051,10.7664,2569.1,2569.0,0.01]
[1751502309255,16.51390347,2569.1,2569.0,0.01]
[1751502309463,12.62148979,2569.1,2569.0,0.01]
[1751502310152,4.71148979,2569.1,2569.0,0.01]
[1751502310684,18.60390347,2569.1,2569.0,0.01]
[1751502310902,16.74881368,2569.1,2569.0,0.01]
[1751502312962,12.8564,2569.1,2569.0,0.01]
[1751502313289,2.8574,2569.1,2569.0,0.01]
[1751502319287,6.74981368,2569.1,2569.0,0.01]
[1751502319490,8.24859505,2569.1,2569.0,0.01]
[1751502319798,4.35618137,2569.1,2569.0,0.01]
[1751502321003,3.58978137,2569.1,2569.0,0.01]
[1751502321370,2.091,2569.1,2569.0,0.01]
[1751502322102,2.091,2569.6,2569.1,3.89228918]
[1751502322264,2.091,2569.6,2569.1,4.71739389]
[1751502322464,2.091,2569.6,2569.3,0.1944]
[1751502322667,2.091,2569.6,2569.3,0.68555701]
[1751502322913,0.1944,2569.8,2569.4,0.8]
[1751502323249,0.8252,2569.9,2569.1,0.8]
[1751502323386,0.1944,2569.3,2569.0,4.73]
[1751502323586,2.9162,2569.4,2569.0,4.73]
[1751502323784,2.77180685,2569.3,2569.0,0.01]
[1751502327932,10.0,2569.2,2569.0,0.01]
[1751502328429,14.68051368,2569.1,2569.0,0.01]
[1751502330004,15.23051368,2569.1,2569.0,0.01]
[1751502332702,25.51251368,2569.1,2569.0,0.01]
[1751502332898,28.52107408,2569.1,2569.0,0.01]
[1751502333331,17.68907408,2569.1,2569.0,0.01]
[1751502333536,24.0806604,2569.1,2569.0,0.01]
[1751502333906,5.0795604,2569.1,2569.0,0.01]
[1751502334217,10.281,2569.1,2569.0,0.01]
[1751502334415,2.071,2569.1,2569.0,0.01]
[1751502334833,5.96341368,2569.1,2569.0,0.01]
[1751502335143,5.20392295,2568.5,2568.4,0.01]
[1751502335443,19.18463238,2568.5,2568.4,0.01]
[1751502335645,16.72492295,2568.5,2568.4,0.01]
[1751502341460,10.7606,2568.5,2568.4,0.01]
[1751502341653,10.305,2568.5,2568.4,0.01]
[1751502342211,2.071,2568.5,2568.4,0.01]
[1751502342439,4.7222982,2568.7,2568.4,0.01]
[1751502342640,21.70972982,2568.6,2568.4,0.01]
[1751502345053,25.60291378,2568.6,2568.4,0.01]
[1751502345254,15.30091378,2568.6,2568.4,0.01]
[1751502345449,2.071,2568.5,2568.4,0.01]
[1751502345852,1.40772982,2568.6,2568.4,0.01]
[1751502346035,2.071,2568.5,2568.4,0.01]
[1751502347334,2.2781,2568.5,2568.4,0.01]
[1751502349050,6.17142295,2568.5,2568.4,0.01]
[1751502349371,6.94102295,2568.5,2568.4,0.01]
[1751502350464,25.15502295,2568.5,2568.4,0.01]
[1751502350963,25.15802295,2568.5,2568.4,0.01]
[1751502353073,25.70802295,2568.5,2568.4,0.01]
[1751502355964,25.15802295,2568.5,2568.4,0.01]
[1751502359248,24.38842295,2568.5,2568.4,0.01]
[1751502360994,10.2071,2568.5,2568.4,0.01]
[1751502361142,20.4831,2568.5,2568.4,0.01]
[1751502361984,10.2071,2568.5,2568.4,0.01]
[1751502362177,20.4841,2568.5,2568.4,0.01]
[1751502362976,20.4831,2568.5,2568.4,0.01]
[1751502363173,2.068,2568.5,2568.4,0.01]
[1751502365051,24.16932295,2568.5,2568.4,0.01]
[1751502365258,24.99452295,2568.5,2568.4,0.01]
[1751502370889,10.1713,2568.8,2568.4,0.01]
[1751502371065,0.1944,2568.5,2568.4,0.01]
[1751502371268,2.2624,2568.8,2568.5,0.7971]
[1751502371465,2.068,2568.8,2568.7,4.69011981]
[1751502371668,2.068,2568.8,2568.7,1.28555198]
[1751502371869,2.068,2568.8,2568.7,5.17857179]
[1751502372588,2.068,2568.8,2568.7,1.28555198]
[1751502372959,2.068,2568.8,2568.7,0.7971]
[1751502373159,2.2624,2568.8,2568.7,0.7971]
[1751502373891,2.068,2568.8,2568.7,0.7971]
[1751502374565,2.068,2568.8,2568.7,4.69011981]
[1751502375168,2.068,2568.8,2568.7,0.7971]
[1751502375374,2.068,2568.8,2568.7,1.28556078]
[1751502375776,0.02,2568.9,2568.8,4.70886826]
[1751502375976,0.02,2568.9,2568.8,9.42886826]
[1751502376294,0.02,2568.9,2568.8,9.62326826]
[1751502376892,0.02,2568.9,2568.8,11.94086348]